fUST/lending_fUST_20241016
["ID","MTS","AMOUNT","RATE_DAILY","PERIOD"]
[340326458,1729048246137,-3437.62,0.00022353,2]
[340326459,1729048246146,-500.0,0.00022353,2]
[340326462,1729048246155,-500.0,0.00022353,2]
[340326464,1729048246165,-500.0,0.00022353,2]
[340326466,1729048246174,-752.17,0.00022353,2]
[340326467,1729048246184,-500.0,0.00022353,2]
[340326469,1729048246194,-513.66881583,0.00022353,2]
[340326471,1729048246203,-542.63352413,0.00022353,2]
[340326473,1729048246213,-502.24719766,0.00022353,2]
[340326475,1729048246223,-500.0,0.00022353,2]
[340326477,1729048246232,-500.0,0.00022353,2]
[340326479,1729048246241,-500.0,0.00022353,2]
[340326481,1729048246251,-500.0,0.00022353,2]
[340326483,1729048246261,-500.0,0.00022353,2]
[340326485,1729048246270,-1111.83497,0.00022353,7]
[340326487,1729048246279,-500.0,0.00022353,2]
[340326489,1729048246288,-500.0,0.00022353,2]
[340326491,1729048246297,-1111.83497,0.00022353,7]
[340326493,1729048246307,-500.0,0.00022353,2]
[340326494,1729048246316,-519.44,0.00022353,2]
[340326495,1729048246325,-500.0,0.00022353,2]
[340326496,1729048246335,-1235.61,0.00022353,2]
[340326497,1729048246356,-500.0,0.00022353,2]
[340326498,1729048246370,-500.0,0.00022353,2]
[340326499,1729048246379,-2049.49,0.00022353,2]
[340326500,1729048246390,-1992.77,0.00022353,2]
[340326501,1729048246400,-500.0,0.00022353,2]
[340326502,1729048246410,-500.0,0.00022353,2]
[340326503,1729048246420,-3707.801514,0.00022353,7]
[340326504,1729048246430,-2031.694088,0.00022353,7]
[340326505,1729048246440,-3707.801514,0.00022353,7]
[340326506,1729048246450,-500.0,0.00022353,2]
[340326507,1729048246459,-500.0,0.00022353,2]
[340326508,1729048246470,-2031.694088,0.00022353,7]
[340326509,1729048246480,-500.0,0.00022353,2]
[340326510,1729048246489,-500.0,0.00022353,2]
[340326511,1729048246499,-500.0,0.00022353,2]
[340326512,1729048246509,-500.0,0.00022353,2]
[340326513,1729048246519,-964.846721,0.00022353,7]
[340326514,1729048246530,-500.0,0.00022353,2]
[340326515,1729048246539,-964.846721,0.00022353,7]
[340326516,1729048246549,-500.0,0.00022353,2]
[340326517,1729048246559,-500.0,0.00022353,2]
[340326518,1729048246569,-507.99979693,0.00022353,2]
[340326519,1729048246580,-500.0,0.00022353,2]
[340326520,1729048246590,-500.0,0.00022353,2]
[340326521,1729048246601,-500.0,0.00022353,2]
[340326522,1729048246612,-628.56,0.00022353,2]
[340326523,1729048246622,-500.0,0.00022353,2]
[340326524,1729048246632,-863.348997,0.00022353,7]
[340326525,1729048246642,-500.0,0.00022353,2]
[340326526,1729048246654,-151.0,0.00022353,7]
[340326527,1729048246666,-863.348997,0.00022353,7]
[340326528,1729048246676,-500.0,0.00022353,2]
[340326529,1729048246687,-161.989584,0.00022353,7]
[340326530,1729048246698,-1010.82,0.00022353,2]
[340326531,1729048246709,-1568.548303,0.00022353,7]
[340326532,1729048246719,-1568.548303,0.00022353,7]
[340326533,1729048246729,-3914.316011,0.00022353,7]
[340326534,1729048246739,-3914.316011,0.00022353,7]
[340326535,1729048246751,-2697.14,0.00022353,2]
[340326536,1729048246762,-6718.09,0.00022353,2]
[340326537,1729048246772,-151.0,0.00022353,7]
[340326538,1729048246783,-5101.23,0.00022353,2]
[340326539,1729048246794,-500.0,0.00022353,2]
[340326540,1729048246804,-151.0,0.00022353,7]
[340326541,1729048246816,-1834.48,0.00022353,2]
[340326542,1729048246826,-500.0,0.00022353,2]
[340326543,1729048246837,-3239.5,0.00022353,2]
[340326544,1729048246846,-167.784723,0.00022353,7]
[340326545,1729048246858,-500.0,0.00022353,2]
[340326546,1729048246868,-167.784723,0.00022353,7]
[340326547,1729048246878,-3102.4,0.00022353,2]
[340326548,1729048246887,-3673.47,0.00022353,2]
[340326549,1729048246899,-500.0,0.00022353,2]
[340326550,1729048246914,-500.0,0.00022353,2]
[340326551,1729048246925,-3000.0,0.00022353,2]
[340326552,1729048246937,-3000.0,0.00022353,2]
[340326553,1729048246949,-3000.0,0.00022353,2]
[340326554,1729048246963,-3000.0,0.00022353,2]
[340326555,1729048246974,-3000.0,0.00022353,2]
[340326556,1729048246985,-3000.0,0.00022353,2]
[340326557,1729048246996,-3000.0,0.00022353,2]
[340326558,1729048247007,-3000.0,0.00022353,2]
[340326559,1729048247018,-176.131808,0.00022353,7]
[340326560,1729048247029,-2123.866938,0.00022353,2]
[340326561,1729048247040,-500.0,0.00022353,2]
[340326562,1729048247053,-176.131808,0.00022353,7]
[340326563,1729048247064,-197.960472,0.00022353,7]
[340326564,1729048247073,-197.960472,0.00022353,7]
[340326565,1729048247083,-215.649602,0.00022353,7]
[340326566,1729048247092,-215.649602,0.00022353,7]
[340326567,1729048247103,-505.70133521,0.00022353,2]
[340326568,1729048247114,-500.0,0.00022354,2]
[340326569,1729048247126,-500.0,0.00022354,2]
[340326570,1729048247138,-500.0,0.00022354,2]
[340326571,1729048247147,-500.0,0.00022354,2]
[340326572,1729048247157,-500.0,0.00022354,2]
[340326573,1729048247167,-500.0,0.00022354,2]
[340326574,1729048247305,-500.0,0.00022354,2]
[340326575,1729048247314,-500.0,0.00022354,2]
[340326576,1729048247323,-500.0,0.00022354,2]
[340326577,1729048247333,-500.0,0.00022354,2]
[340326578,1729048247342,-500.0,0.00022354,2]
[340326579,1729048247351,-500.0,0.00022354,2]
[340326580,1729048247364,-500.0,0.00022354,2]
[340326581,1729048247374,-500.0,0.00022354,2]
[340326582,1729048247383,-500.0,0.00022354,2]
[340326583,1729048247392,-500.0,0.00022354,2]
[340326584,1729048247402,-500.0,0.00022354,2]
[340326585,1729048247412,-512.36716455,0.00022354,2]
[340326586,1729048247422,-500.0,0.00022354,2]
[340326587,1729048247431,-500.0,0.00022354,2]
[340326588,1729048247440,-500.0,0.00022354,2]
[340326589,1729048247449,-500.0,0.00022354,2]
[340326590,1729048247458,-500.0,0.00022354,2]
[340326591,1729048247468,-500.0,0.00022354,2]
[340326592,1729048247478,-500.0,0.00022354,2]
[340326593,1729048247487,-180.48807173,0.00022354,2]
[340326594,1729048247497,-500.0,0.00022354,2]
[340326595,1729048247506,-500.0,0.00022354,2]
[340326596,1729048247516,-500.0,0.00022354,2]
[340326597,1729048247525,-500.0,0.00022354,2]
[340326598,1729048247534,-500.0,0.00022354,2]
[340326599,1729048247544,-810.95,0.00022354,2]
[340326600,1729048247553,-500.0,0.00022354,2]
[340326601,1729048247563,-500.0,0.00022354,2]
[340326602,1729048247572,-500.0,0.00022354,2]
[340326603,1729048247587,-500.0,0.00022354,2]
[340326604,1729048247596,-500.94415855,0.00022354,2]
[340326605,1729048247605,-500.0,0.00022354,2]
[340326606,1729048247615,-500.0,0.00022354,2]
[340326607,1729048247624,-500.0,0.00022354,2]
[340326608,1729048247634,-500.0,0.00022354,2]
[340326609,1729048247644,-500.0,0.00022354,2]
[340326610,1729048247656,-500.0,0.00022354,2]
[340326611,1729048247667,-500.0,0.00022354,2]
[340326612,1729048247678,-505.7092018,0.00022354,2]
[340326613,1729048247690,-1283.54,0.00022354,2]
[340326614,1729048247699,-500.0,0.00022354,2]
[340326615,1729048247713,-505.68901897,0.00022354,2]
[340326616,1729048247724,-500.0,0.00022354,2]
[340326617,1729048247734,-500.0,0.00022354,2]
[340326618,1729048247744,-200.23856059,0.00022354,2]
[340326619,1729048247755,-500.0,0.00022354,2]
[340326620,1729048247767,-500.0,0.00022354,2]
[340326621,1729048247777,-500.0,0.00022354,2]
[340326622,1729048247787,-500.0,0.00022354,2]
[340326623,1729048247798,-500.0,0.00022354,2]
[340326624,1729048247809,-500.0,0.00022354,2]
[340326625,1729048247821,-500.0,0.00022354,2]
[340326626,1729048247831,-500.0,0.00022354,2]
[340326627,1729048247841,-500.0,0.00022354,2]
[340326628,1729048247850,-500.0,0.00022354,2]
[340326629,1729048247860,-500.0,0.00022354,2]
[340326630,1729048247869,-500.0,0.00022354,2]
[340326631,1729048247879,-500.0,0.00022354,2]
[340326632,1729048247889,-500.0,0.00022354,2]
[340326633,1729048247899,-500.0,0.00022354,2]
[340326634,1729048247909,-500.0,0.00022354,2]
[340326635,1729048247922,-506.03794727,0.00022354,2]
[340326636,1729048247931,-500.0,0.00022354,2]
[340326637,1729048247942,-500.0,0.00022354,2]
[340326638,1729048247951,-500.0,0.00022354,2]
[340326639,1729048247962,-500.0,0.00022354,2]
[340326640,1729048247972,-500.0,0.00022354,2]
[340326641,1729048247981,-500.0,0.00022354,2]
[340326642,1729048247993,-500.0,0.00022354,2]
[340326643,1729048248003,-330.99578508,0.00022354,2]
[340326644,1729048248012,-3815.26,0.00022354,2]
[340326645,1729048248022,-508.91511658,0.00022354,2]
[340326646,1729048248031,-3815.26,0.00022354,2]
[340326647,1729048248041,-3815.26,0.00022354,2]
[340326648,1729048248050,-500.0,0.00022354,2]
[340326649,1729048248059,-3815.26,0.00022354,2]
[340326650,1729048248069,-500.0,0.00022354,2]
[340326651,1729048248079,-508.90219018,0.00022354,2]
[340326652,1729048248090,-500.0,0.00022354,2]
[340326653,1729048248100,-500.0,0.00022354,2]
[340326654,1729048248112,-500.0,0.00022354,2]
[340326655,1729048248123,-500.0,0.00022354,2]
[340326656,1729048248133,-500.0,0.00022354,2]
[340326657,1729048248143,-500.0,0.00022354,2]
[340326658,1729048248153,-500.0,0.00022354,2]
[340326659,1729048248164,-500.0,0.00022354,2]
[340326660,1729048248174,-500.0,0.00022354,2]
[340326661,1729048248183,-500.0,0.00022354,2]
[340326662,1729048248193,-500.0,0.00022354,2]
[340326663,1729048248203,-500.0,0.00022354,2]
[340326664,1729048248213,-500.0,0.00022354,2]
[340326665,1729048248222,-500.0,0.00022354,2]
[340326666,1729048248232,-500.0,0.00022354,2]
[340326667,1729048248242,-500.0,0.00022354,2]
[340326668,1729048248252,-500.0,0.00022354,2]
[340326669,1729048248261,-500.0,0.00022354,2]
[340326670,1729048248271,-500.0,0.00022354,2]
[340326671,1729048248280,-503.39639075,0.00022354,2]
[340326672,1729048248290,-500.0,0.00022354,2]
[340326673,1729048248299,-500.0,0.00022354,2]
[340326674,1729048248309,-500.0,0.00022354,2]
[340326675,1729048248318,-500.0,0.00022354,2]
[340326676,1729048248328,-500.0,0.00022354,2]
[340326677,1729048248337,-897.23,0.00022354,2]
[340326678,1729048248346,-500.0,0.00022354,2]
[340326679,1729048248355,-500.0,0.00022354,2]
[340326680,1729048248365,-500.0,0.00022354,2]
[340326681,1729048248375,-500.0,0.00022354,2]
[340326682,1729048248386,-500.0,0.00022354,2]
[340326683,1729048248396,-500.0,0.00022354,2]
[340326684,1729048248407,-626.68034211,0.00022354,2]
[340326685,1729048248416,-500.0,0.00022354,2]
[340326686,1729048248426,-500.0,0.00022354,2]
[340326687,1729048248435,-500.0,0.00022354,2]
[340326688,1729048248449,-500.0,0.00022354,2]
[340326689,1729048248459,-500.0,0.00022354,2]
[340326690,1729048248468,-500.0,0.00022354,2]
[340326691,1729048248477,-500.0,0.00022354,2]
[340326692,1729048248487,-500.0,0.00022354,2]
[340326693,1729048248496,-179.52912284,0.00022354,2]
[340326694,1729048248506,-500.0,0.00022354,2]
[340326695,1729048248516,-500.0,0.00022354,2]
[340326696,1729048248525,-500.0,0.00022354,2]
[340326697,1729048248536,-500.0,0.00022354,2]
[340326698,1729048248545,-500.0,0.00022354,2]
[340326699,1729048248555,-500.0,0.00022354,2]
[340326700,1729048248564,-496.16445392,0.00022354,2]
[340326701,1729048248573,-500.0,0.00022354,2]
[340326702,1729048248582,-500.0,0.00022354,2]
[340326703,1729048248592,-576.81780575,0.00022354,2]
[340326704,1729048248601,-500.0,0.00022354,2]
[340326705,1729048248610,-668.45,0.00022354,2]
[340326706,1729048248620,-151.0,0.00022354,7]
[340326707,1729048248630,-230.169107,0.00022354,7]
[340326708,1729048248639,-360.3823133,0.00022354,2]
[340326709,1729048248649,-504.42180439,0.00022354,2]
[340326710,1729048248658,-500.0,0.00022354,2]
[340326711,1729048248668,-500.0,0.00022354,2]
[340326712,1729048248678,-666.92,0.00022354,2]
[340326713,1729048248687,-500.0,0.00022354,2]
[340326714,1729048248699,-500.0,0.00022354,2]
[340326715,1729048248708,-502.81,0.00022354,2]
[340326716,1729048248719,-506.84519102,0.00022354,2]
[340326717,1729048248728,-561.72233197,0.00022354,2]
[340326718,1729048248824,-500.0,0.00022354,2]
[340326719,1729048248835,-547.06,0.00022354,2]
[340326720,1729048248846,-500.0,0.00022354,2]
[340326721,1729048248856,-500.0,0.00022354,2]
[340326722,1729048248866,-500.0,0.00022354,2]
[340326723,1729048248875,-504.77270767,0.00022354,2]
[340326724,1729048248886,-500.0,0.00022354,2]
[340326725,1729048248896,-500.0,0.00022354,2]
[340326726,1729048248905,-500.0,0.00022354,2]
[340326727,1729048248918,-500.0,0.00022354,2]
[340326728,1729048248928,-500.0,0.00022354,2]
[340326729,1729048248937,-575.8,0.00022354,2]
[340326730,1729048248948,-500.0,0.00022354,2]
[340326731,1729048248959,-500.0,0.00022354,2]
[340326732,1729048248968,-500.0,0.00022354,2]
[340326733,1729048248978,-500.0,0.00022354,2]
[340326734,1729048248989,-500.0,0.00022354,2]
[340326735,1729048248999,-449.766951,0.00022354,7]
[340326736,1729048249008,-449.766951,0.00022354,7]
[340326737,1729048249018,-500.0,0.00022354,2]
[340326738,1729048249028,-500.0,0.00022354,2]
[340326739,1729048249038,-500.0,0.00022354,2]
[340326740,1729048249048,-3306.02,0.00022354,2]
[340326741,1729048249057,-511.87368743,0.00022354,2]
[340326742,1729048249067,-500.0,0.00022354,2]
[340326743,1729048249076,-449.766951,0.00022354,7]
[340326744,1729048249087,-449.766951,0.00022354,7]
[340326745,1729048249097,-500.0,0.00022354,2]
[340326746,1729048249107,-500.0,0.00022354,2]
[340326747,1729048249118,-500.0,0.00022354,2]
[340326748,1729048249127,-500.0,0.00022354,2]
[340326749,1729048249137,-500.0,0.00022354,2]
[340326750,1729048249147,-500.0,0.00022354,2]
[340326751,1729048249158,-2677.92,0.00022354,2]
[340326752,1729048249167,-208.56450676,0.00022354,2]
[340326753,1729048249177,-492.20678696,0.00022354,2]
[340326754,1729048249187,-500.0,0.00022354,2]
[340326755,1729048249197,-500.0,0.00022354,2]
[340326756,1729048249207,-500.0,0.00022354,2]
[340326757,1729048249217,-500.0,0.00022354,2]
[340326758,1729048249228,-500.0,0.00022354,2]
[340326759,1729048249237,-500.0,0.00022354,2]
[340326760,1729048249248,-500.0,0.00022354,2]
[340326761,1729048249257,-500.0,0.00022354,2]
[340326762,1729048249267,-500.0,0.00022354,2]
[340326763,1729048249276,-1132.76,0.00022354,2]
[340326764,1729048249285,-500.0,0.00022354,2]
[340326765,1729048249295,-505.95691595,0.00022354,2]
[340326766,1729048249304,-500.0,0.00022354,2]
[340326767,1729048249314,-500.0,0.00022354,2]
[340326768,1729048249323,-500.0,0.00022354,2]
[340326769,1729048249333,-500.0,0.00022354,2]
[340326770,1729048249342,-1558.956546,0.00022354,7]
[340326771,1729048249351,-1558.956546,0.00022354,7]
[340326772,1729048249361,-500.0,0.00022354,2]
[340326773,1729048249370,-500.0,0.00022354,2]
[340326774,1729048249380,-505.94218877,0.00022354,2]
[340326775,1729048249389,-1558.956546,0.00022354,7]
[340326776,1729048249399,-1296.77,0.00022354,2]
[340326777,1729048249409,-1558.956546,0.00022354,7]
[340326778,1729048249418,-500.0,0.00022354,2]
[340326779,1729048249428,-479.490877,0.00022354,7]
[340326780,1729048249437,-479.490877,0.00022354,7]
[340326781,1729048249447,-163.95836085,0.00022354,2]
[340326782,1729048249457,-500.0,0.00022354,2]
[340326783,1729048249466,-1146.085349,0.00022354,7]
[340326784,1729048249476,-479.490877,0.00022354,7]
[340326785,1729048249485,-1146.085349,0.00022354,7]
[340326786,1729048249495,-479.490877,0.00022354,7]
[340326787,1729048249504,-500.0,0.00022354,2]
[340326788,1729048249513,-1146.085349,0.00022354,7]
[340326789,1729048249523,-1146.085349,0.00022354,7]
[340326790,1729048249532,-500.0,0.00022354,2]
[340326791,1729048249541,-557.22,0.00022354,2]
[340326792,1729048249551,-605.61,0.00022354,2]
[340326793,1729048249560,-209.735953,0.00022354,7]
[340326794,1729048249569,-209.735953,0.00022354,7]
[340326795,1729048249579,-500.0,0.00022354,2]
[340326796,1729048249588,-209.735953,0.00022354,7]
[340326797,1729048249597,-209.735953,0.00022354,7]
[340326798,1729048249607,-500.0,0.00022354,2]
[340326799,1729048249616,-500.0,0.00022354,2]
[340326800,1729048249625,-500.0,0.00022354,2]
[340326801,1729048249635,-500.0,0.00022354,2]
[340326802,1729048249644,-500.0,0.00022354,2]
[340326803,1729048249653,-500.0,0.00022354,2]
[340326804,1729048249663,-511.81872897,0.00022354,2]
[340326805,1729048249673,-500.0,0.00022354,2]
[340326806,1729048249683,-500.0,0.00022354,2]
[340326807,1729048249692,-500.0,0.00022354,2]
[340326808,1729048249702,-500.0,0.00022354,2]
[340326809,1729048249711,-502.75113019,0.00022354,2]
[340326810,1729048249721,-500.0,0.00022354,2]
[340326811,1729048249731,-500.0,0.00022354,2]
[340326812,1729048249740,-500.0,0.00022354,2]
[340326813,1729048249750,-500.0,0.00022354,2]
[340326814,1729048249759,-1445.780883,0.00022354,7]
[340326815,1729048249769,-1445.780883,0.00022354,7]
[340326816,1729048249779,-500.0,0.00022354,2]
[340326817,1729048249789,-1445.780883,0.00022354,7]
[340326818,1729048249799,-1445.780883,0.00022354,7]
[340326819,1729048249809,-500.0,0.00022354,2]
[340326820,1729048249819,-500.0,0.00022354,2]
[340326821,1729048249828,-3995.320371,0.00022354,7]
[340326822,1729048249839,-3995.320371,0.00022354,7]
[340326823,1729048249850,-3995.320371,0.00022354,7]
[340326824,1729048249860,-500.0,0.00022354,2]
[340326825,1729048249870,-3995.320371,0.00022354,7]
[340326826,1729048249880,-500.0,0.00022354,2]
[340326827,1729048249890,-500.0,0.00022354,2]
[340326828,1729048249900,-500.0,0.00022354,2]
[340326829,1729048249911,-500.0,0.00022354,2]
[340326830,1729048249922,-500.0,0.00022354,2]
[340326831,1729048249933,-500.0,0.00022354,2]
[340326832,1729048249946,-500.0,0.00022354,2]
[340326833,1729048249958,-500.0,0.00022354,2]
[340326834,1729048249967,-3429.340871,0.00022354,7]
[340326835,1729048249976,-3429.340871,0.00022354,7]
[340326836,1729048249987,-500.0,0.00022354,2]
[340326837,1729048249998,-3429.340871,0.00022354,7]
[340326838,1729048250007,-3429.340871,0.00022354,7]
[340326839,1729048250017,-500.0,0.00022354,2]
[340326840,1729048250026,-715.781534,0.00022354,7]
[340326841,1729048250035,-505.84039601,0.00022354,2]
[340326842,1729048250044,-715.781534,0.00022354,7]
[340326843,1729048250053,-567.31474735,0.00022354,7]
[340326845,1729048313881,8498.9724234,0.00021352,2]
[340326846,1729048319979,4826.78182439,0.00022,2]
[340326847,1729048352026,161.587047,0.00021288,2]
[340326848,1729048352242,161.587047,0.0002151,2]
[340326849,1729048352475,161.587047,0.00021731,2]
[340326850,1729048353205,161.587047,0.00021953,2]
[340326851,1729048354345,170.431208,0.00020855,2]
[340326852,1729048404577,422.585752,0.00027,60]
[340326855,1729048489453,176.5578285,0.00021129,2]
[340326857,1729048552057,166.666666,0.00021918,2]
[340326862,1729048616693,596.68506731,0.00021929,4]
[340326873,1729048744990,150.0,0.00027,120]
[340326874,1729048782328,327.10041,0.00021124,2]
[340326875,1729048782699,327.10041,0.00021808,2]
[340326876,1729048784081,381.7,0.00027,120]
[340326883,1729048835038,800.0,0.00027,60]
[340326887,1729048905839,161.587047,0.00021271,2]
[340326888,1729048956863,61846.63946016,0.000218,2]
[340326889,1729048966959,160.64456132,0.00027,60]
[340326902,1729049188750,305.514812,0.00025999,31]
[340326966,1729049432092,-163.550205,0.00020776,2]
[340326969,1729049432107,-161.587047,0.00020898,2]
[340326971,1729049432116,-1000.0,0.00021,2]
[340326973,1729049432126,-232.98298295,0.00021672,2]
[340326975,1729049432136,-2513.81269651,0.0002168,2]
[340326977,1729049432146,-300.0,0.00021772,2]
[340326979,1729049432155,-300.0,0.00021772,2]
[340326981,1729049432165,-500.0,0.00021773,2]
[340326984,1729049432176,-501.3293423,0.00021773,2]
[340326986,1729049432187,-500.0,0.00021773,2]
[340326988,1729049432197,-500.0,0.00021773,2]
[340326990,1729049432206,-574.55591551,0.00021773,2]
[340326992,1729049432216,-551.39640475,0.00021773,2]
[340326994,1729049432226,-500.0,0.00021773,2]
[340326996,1729049432236,-500.0,0.00021773,2]
[340326998,1729049432246,-500.0,0.00021773,2]
[340327000,1729049432256,-500.0,0.00021773,2]
[340327002,1729049432269,-500.0,0.00021773,2]
[340327004,1729049432279,-500.0,0.00021773,2]
[340327006,1729049432289,-500.0,0.00021773,2]
[340327024,1729049432460,-500.0,0.00021773,2]
[340327026,1729049432471,-361.78552768,0.00021773,2]
[340327028,1729049432481,-501.14281923,0.00021773,2]
[340327030,1729049432491,-500.75251806,0.00021773,2]
[340327032,1729049432500,-500.0,0.00021773,2]
[340327034,1729049432510,-500.0,0.00021773,2]
[340327036,1729049432520,-500.0,0.00021773,2]
[340327038,1729049432529,-500.0,0.00021773,2]
[340327040,1729049432539,-200.36852641,0.00021773,2]
[340327042,1729049432549,-500.49181178,0.00021773,2]
[340327044,1729049432559,-500.0,0.00021773,2]
[340327047,1729049432569,-500.89577319,0.00021773,2]
[340327049,1729049432579,-161.78703657,0.00021773,2]
[340327051,1729049432589,-500.0,0.00021773,2]
[340327053,1729049432600,-500.0,0.00021773,2]
[340327055,1729049432611,-344.61338619,0.00021773,2]
[340327057,1729049432620,-500.0,0.00021779,2]
[340327059,1729049432629,-500.0,0.00021779,2]
[340327061,1729049432638,-500.0,0.00021779,2]
[340327063,1729049432647,-500.0,0.00021779,2]
[340327065,1729049432657,-369.60993717,0.00021779,2]
[340327067,1729049432670,-376.31592362,0.0002178,2]
[340327069,1729049432680,-23392.9280605,0.0002178,3]
[340327358,1729049440161,-500.0,0.00021773,2]
[340327359,1729049440170,-500.0,0.00021773,2]
[340327360,1729049440180,-95540.1474915,0.0002178,3]
[340327361,1729049440191,-6434.00839524,0.0002178,3]
[340327362,1729049440200,-623.82505094,0.00021789,2]
[340327363,1729049440210,-291.06228818,0.00021789,2]
[340327364,1729049440219,-302.15790445,0.00021789,2]
[340327365,1729049440228,-500.0,0.00021789,2]
[340327366,1729049440238,-328.4147894,0.00021789,2]
[340327367,1729049440247,-281.90730751,0.00021789,2]
[340327368,1729049440257,-118933.075552,0.0002179,3]
[340327369,1729049440270,-25736.033581,0.0002179,3]
[340327370,1729049440279,-812672.95588353,0.000218,2]
[340327964,1729049491693,418.56402633,0.00027,60]
[340327972,1729049808164,20000.0,0.00027,60]
[340327974,1729049859392,509.81160476,0.00027,60]
[340327996,1729049969436,500.0,0.00027,60]
[340328025,1729050579178,438.11,0.00027,60]
[340328710,1729050640270,-163.550205,0.00020181,2]
[340328712,1729050640282,-809.1381281,0.00020277,2]
[340328714,1729050640292,-159.0472432,0.00020332,2]
[340328716,1729050640302,-165.322773,0.00020437,2]
[340328718,1729050640313,-5000.0,0.00021,2]
[340328720,1729050640323,-209.8126003,0.00021,2]
[340328722,1729050640334,-481.54291812,0.0002133,2]
[340328724,1729050640344,-300.0,0.00021399,2]
[340328726,1729050640354,-226.3593791,0.000214,2]
[340328728,1729050640364,-210.3259639,0.000214,2]
[340328730,1729050640373,-420.6519278,0.000214,2]
[340328732,1729050640383,-210.3259639,0.000214,2]
[340328734,1729050640393,-632.25,0.0002157,3]
[340328736,1729050640403,-250.87728242,0.00021572,2]
[340328738,1729050640413,-23786.6151104,0.00021572,3]
[340328740,1729050640422,-321.70041978,0.00021572,3]
[340328742,1729050640432,-500.0,0.00021579,2]
[340328745,1729050640443,-235.90182301,0.00021579,2]
[340328747,1729050640454,-71359.8453311,0.0002158,3]
[340328749,1729050640464,-965.10125934,0.0002158,3]
[340328750,1729050640474,-65956.90600601,0.00021582,2]
[340328752,1729050640483,-193.639,0.00021582,2]
[340328755,1729050640494,-35630.70024578,0.00021582,2]
[340328757,1729050640503,-23786.6151104,0.0002159,3]
[340328759,1729050640514,-321.70041978,0.0002159,3]
[340328761,1729050640523,-6291.91482069,0.00021597,2]
[340328763,1729050640533,-302.15790445,0.00021599,2]
[340328765,1729050640543,-291.06228818,0.00021599,2]
[340328767,1729050640552,-328.4147894,0.00021599,2]
[340328769,1729050640562,-500.0,0.00021599,2]
[340328771,1729050640572,-623.82505094,0.00021599,2]
[340328773,1729050640582,-281.90730751,0.00021599,2]
[340328775,1729050640591,-70187.76,0.000216,2]
[340328777,1729050640601,-150.9750297,0.000216,2]
[340328779,1729050640611,-828.1483632,0.000216,2]
[340328781,1729050640620,-827.9960497,0.000216,2]
[340328783,1729050640629,-7774.99274933,0.00021641,2]
[340328785,1729050640639,-1000.0,0.0002169,2]
[340328787,1729050640649,-218.44009,0.000217,4]
[340328789,1729050640660,-1046.70984591,0.000217,2]
[340328791,1729050640670,-71359.8453311,0.0002176,3]
[340328793,1729050640679,-965.10125934,0.0002176,3]
[340328795,1729050640689,-47573.2302207,0.0002177,3]
[340328796,1729050640701,-643.40083956,0.0002177,3]
[340328797,1729050640710,-500.0,0.00021773,2]
[340328798,1729050640720,-262.4308153,0.00021773,2]
[340328799,1729050640729,-500.0,0.00021773,2]
[340328800,1729050640740,-500.0,0.00021773,2]
[340328801,1729050640749,-502.43027219,0.00021773,2]
[340328802,1729050640759,-500.0,0.00021773,2]